fUSD/lending_fUSD_20250806
["ID","MTS","AMOUNT","RATE_DAILY","PERIOD"]
[377571480,1754445073075,-1607.76,0.0003589,14]
[377571481,1754445073084,-1527.37,0.0003589,14]
[377571482,1754445073094,-685.92,0.0003589,14]
[377571483,1754445073103,-439.67,0.0003589,14]
[377571484,1754445073113,-400.0,0.0003589,14]
[377571485,1754445073122,-2046.3,0.0003589,14]
[377571486,1754445073131,-2962.64,0.0003589,14]
[377571487,1754445073141,-400.0,0.0003589,14]
[377571488,1754445073151,-400.0,0.0003589,14]
[377571489,1754445073161,-400.0,0.0003589,14]
[377571490,1754445073170,-400.0,0.0003589,14]
[377571491,1754445073179,-400.0,0.0003589,14]
[377571492,1754445073188,-1827.77,0.0003589,14]
[377571493,1754445073198,-400.0,0.0003589,14]
[377571494,1754445073207,-2171.96,0.0003589,14]
[377571495,1754445073216,-400.0,0.0003589,14]
[377571496,1754445073226,-2284.3,0.0003589,14]
[377571497,1754445073236,-1380.46,0.0003589,14]
[377571498,1754445073362,-400.0,0.0003589,14]
[377571499,1754445073371,-400.0,0.0003589,14]
[377571500,1754445073382,-977.84,0.0003589,14]
[377571501,1754445073391,-459.21,0.0003589,14]
[377571502,1754445073400,-400.0,0.0003589,14]
[377571503,1754445073409,-400.0,0.0003589,14]
[377571504,1754445073419,-400.0,0.0003589,14]
[377571505,1754445073429,-1461.2,0.0003589,14]
[377571506,1754445073439,-796.51,0.0003589,14]
[377571507,1754445073448,-400.0,0.0003589,14]
[377571508,1754445073458,-400.0,0.0003589,14]
[377571509,1754445073467,-400.0,0.0003589,14]
[377571510,1754445073477,-221.44775701,0.0003589,14]
[377571511,1754445073486,-986.73,0.0003589,14]
[377571512,1754445073495,-1923.74,0.0003589,14]
[377571513,1754445073504,-400.0,0.0003589,14]
[377571514,1754445073513,-400.0,0.0003589,14]
[377571515,1754445073522,-2614.37,0.0003589,14]
[377571516,1754445073531,-769.37,0.0003589,14]
[377571517,1754445073541,-400.0,0.0003589,14]
[377571518,1754445073550,-1290.75,0.0003589,14]
[377571519,1754445073559,-772.6,0.0003589,14]
[377571520,1754445073568,-401.23939365,0.0003589,14]
[377571521,1754445073577,-1352.85,0.0003589,14]
[377571522,1754445073586,-1209.54,0.0003589,14]
[377571523,1754445073595,-757.96,0.0003589,14]
[377571524,1754445073604,-754.97,0.0003589,14]
[377571525,1754445073613,-841.08,0.0003589,14]
[377571526,1754445073623,-400.0,0.0003589,14]
[377571527,1754445073632,-2094.9,0.0003589,14]
[377571528,1754445073641,-400.0,0.0003589,14]
[377571529,1754445073651,-402.4800845,0.0003589,14]
[377571530,1754445073660,-624.89,0.0003589,14]
[377571531,1754445073669,-400.0,0.0003589,14]
[377571532,1754445073679,-400.0,0.0003589,14]
[377571533,1754445073689,-2492.87,0.0003589,14]
[377571534,1754445073699,-400.0,0.0003589,14]
[377571535,1754445073708,-400.0,0.0003589,14]
[377571536,1754445073717,-400.0,0.0003589,14]
[377571537,1754445073727,-1272.84,0.0003589,14]
[377571538,1754445073736,-400.0,0.0003589,14]
[377571539,1754445073745,-637.27,0.0003589,14]
[377571540,1754445073755,-1611.84,0.0003589,14]
[377571541,1754445073765,-400.0,0.0003589,14]
[377571542,1754445073774,-2718.79,0.0003589,14]
[377571543,1754445073783,-1692.25,0.0003589,14]
[377571544,1754445073793,-151.0,0.0003589,7]
[377571545,1754445073802,-400.0,0.0003589,14]
[377571546,1754445073811,-400.0,0.0003589,14]
[377571547,1754445073821,-1315.11,0.0003589,14]
[377571548,1754445073834,-652.68,0.0003589,14]
[377571549,1754445073844,-1591.38,0.0003589,14]
[377571550,1754445073853,-1943.43,0.0003589,14]
[377571551,1754445073863,-400.0,0.0003589,14]
[377571552,1754445073873,-400.0,0.0003589,14]
[377571553,1754445073882,-756.43,0.0003589,14]
[377571554,1754445073891,-400.0,0.0003589,14]
[377571555,1754445073902,-2237.96,0.0003589,14]
[377571556,1754445073911,-400.0,0.0003589,14]
[377571557,1754445073921,-420.22,0.0003589,14]
[377571558,1754445073930,-400.0,0.0003589,14]
[377571559,1754445073940,-2575.51,0.0003589,14]
[377571560,1754445073950,-865.96,0.0003589,14]
[377571561,1754445073959,-1894.82,0.0003589,14]
[377571562,1754445073968,-819.6,0.0003589,14]
[377571563,1754445073978,-2053.25,0.0003589,14]
[377571564,1754445073987,-400.0,0.0003589,14]
[377571565,1754445073997,-400.0,0.0003589,14]
[377571566,1754445074006,-400.0,0.0003589,14]
[377571567,1754445074016,-2031.47,0.0003589,14]
[377571568,1754445074026,-1871.26,0.0003589,14]
[377571569,1754445074035,-500.0,0.0003589,10]
[377571570,1754445074046,-229.92710688,0.0003589,14]
[377571571,1754445074055,-400.0,0.0003589,14]
[377571572,1754445074065,-1397.46,0.0003589,14]
[377571573,1754445074075,-400.0,0.0003589,14]
[377571574,1754445074084,-1450.07,0.0003589,14]
[377571575,1754445074094,-400.0,0.0003589,14]
[377571576,1754445074103,-1199.57,0.0003589,14]
[377571577,1754445074112,-441.04,0.0003589,14]
[377571578,1754445074121,-400.0,0.0003589,14]
[377571579,1754445074131,-400.0,0.0003589,14]
[377571580,1754445074140,-400.0,0.0003589,14]
[377571581,1754445074149,-1209.5,0.0003589,14]
[377571582,1754445074159,-400.0,0.0003589,14]
[377571583,1754445074169,-2230.94,0.0003589,14]
[377571584,1754445074178,-418.92,0.0003589,14]
[377571585,1754445074187,-400.0,0.0003589,14]
[377571586,1754445074196,-3525.98,0.0003589,14]
[377571587,1754445074205,-400.0,0.0003589,14]
[377571588,1754445074215,-400.0,0.0003589,14]
[377571589,1754445074224,-400.0,0.0003589,14]
[377571590,1754445074234,-1221.92,0.0003589,14]
[377571591,1754445074243,-1752.0,0.0003589,14]
[377571592,1754445074252,-473.14,0.0003589,14]
[377571593,1754445074261,-400.0,0.0003589,14]
[377571594,1754445074271,-1920.97,0.0003589,14]
[377571595,1754445074280,-1237.41,0.0003589,14]
[377571596,1754445074290,-526.37,0.0003589,14]
[377571597,1754445074300,-404.69996999,0.0003589,14]
[377571598,1754445074309,-400.0,0.0003589,14]
[377571599,1754445074318,-400.0,0.0003589,14]
[377571600,1754445074327,-927.89,0.0003589,14]
[377571601,1754445074336,-400.0,0.0003589,14]
[377571602,1754445074345,-400.0,0.0003589,14]
[377571603,1754445074355,-400.0,0.0003589,14]
[377571604,1754445074364,-400.0,0.0003589,14]
[377571605,1754445074373,-1273.79,0.0003589,14]
[377571606,1754445074383,-400.0,0.0003589,14]
[377571607,1754445074392,-400.0,0.0003589,14]
[377571608,1754445074401,-400.0,0.0003589,14]
[377571609,1754445074411,-2062.42,0.0003589,14]
[377571610,1754445074420,-2103.57,0.0003589,14]
[377571611,1754445074430,-650.32,0.0003589,14]
[377571612,1754445074439,-2044.76,0.0003589,14]
[377571613,1754445074450,-1965.21,0.0003589,14]
[377571614,1754445074459,-733.36,0.0003589,14]
[377571615,1754445074469,-514.18,0.0003589,14]
[377571616,1754445074478,-1869.68,0.0003589,14]
[377571617,1754445074487,-400.0,0.0003589,14]
[377571618,1754445074497,-400.0,0.0003589,14]
[377571619,1754445074506,-400.0,0.0003589,14]
[377571620,1754445074516,-2287.14,0.0003589,14]
[377571621,1754445074525,-1998.0,0.0003589,14]
[377571622,1754445074534,-1802.74,0.0003589,14]
[377571623,1754445074543,-400.0,0.0003589,14]
[377571624,1754445074553,-400.0,0.0003589,14]
[377571625,1754445074562,-403.94,0.0003589,14]
[377571626,1754445074571,-543.81843664,0.0003589,14]
[377571627,1754445074581,-400.0,0.0003589,14]
[377571628,1754445074590,-522.06,0.0003589,14]
[377571629,1754445074599,-400.0,0.0003589,14]
[377571630,1754445074608,-2248.73,0.0003589,14]
[377571631,1754445074618,-3124.69,0.0003589,2]
[377571632,1754445074627,-401.35314624,0.0003589,14]
[377571633,1754445074637,-2221.48,0.0003589,14]
[377571634,1754445074646,-1141.51,0.0003589,14]
[377571635,1754445074655,-653.24,0.0003589,14]
[377571636,1754445074665,-449.07,0.0003589,14]
[377571637,1754445074675,-400.0,0.0003589,14]
[377571638,1754445074685,-2996.94,0.0003589,14]
[377571639,1754445074695,-400.0,0.0003589,14]
[377571640,1754445074704,-400.0,0.0003589,14]
[377571641,1754445074713,-2572.93,0.0003589,14]
[377571642,1754445074723,-3089.34,0.0003589,14]
[377571643,1754445074731,-400.0,0.0003589,14]
[377571644,1754445074741,-400.0,0.0003589,14]
[377571645,1754445074750,-1321.44,0.0003589,14]
[377571646,1754445074760,-400.0,0.0003589,14]
[377571647,1754445074769,-1853.29,0.0003589,14]
[377571648,1754445074779,-554.5,0.0003589,14]
[377571649,1754445074788,-717.97,0.0003589,14]
[377571650,1754445074798,-462.22832296,0.0003589,14]
[377571651,1754445074807,-919.64,0.0003589,14]
[377571652,1754445074818,-500.0,0.0003589,31]
[377571653,1754445074831,-2962.89,0.0003589,14]
[377571654,1754445074840,-400.0,0.0003589,14]
[377571655,1754445074849,-400.0,0.0003589,14]
[377571656,1754445074858,-400.0,0.0003589,14]
[377571657,1754445074870,-400.0,0.0003589,14]
[377571658,1754445074879,-400.0,0.0003589,14]
[377571659,1754445074889,-400.0,0.0003589,14]
[377571660,1754445074899,-400.0,0.0003589,14]
[377571661,1754445074909,-400.0,0.0003589,14]
[377571662,1754445074918,-400.0,0.0003589,14]
[377571663,1754445074928,-1038.9,0.0003589,14]
[377571664,1754445074937,-2119.95,0.0003589,14]
[377571665,1754445074947,-1090.66,0.0003589,14]
[377571666,1754445074958,-400.0,0.0003589,14]
[377571667,1754445074968,-1842.57,0.0003589,14]
[377571668,1754445074977,-2772.54,0.0003589,14]
[377571669,1754445074987,-400.0,0.0003589,14]
[377571670,1754445074996,-400.0,0.0003589,14]
[377571671,1754445075006,-1806.76,0.0003589,14]
[377571672,1754445075015,-400.0610664,0.0003589,14]
[377571673,1754445075024,-1787.24,0.0003589,14]
[377571674,1754445075034,-1611.49,0.0003589,14]
[377571675,1754445075044,-619.2,0.0003589,14]
[377571676,1754445075055,-2102.4,0.0003589,14]
[377571677,1754445075065,-569.78,0.0003589,14]
[377571678,1754445075074,-688.5,0.0003589,14]
[377571679,1754445075084,-409.64271539,0.0003589,14]
[377571680,1754445075094,-400.0,0.0003589,14]
[377571681,1754445075103,-400.0,0.0003589,14]
[377571682,1754445075112,-400.0,0.0003589,14]
[377571683,1754445075122,-400.0,0.0003589,14]
[377571684,1754445075131,-400.0,0.0003589,14]
[377571685,1754445075140,-400.0,0.0003589,14]
[377571686,1754445075150,-400.0,0.0003589,14]
[377571687,1754445075159,-710.89,0.0003589,14]
[377571688,1754445075169,-481.93,0.0003589,14]
[377571689,1754445075178,-400.0,0.0003589,14]
[377571690,1754445075187,-1788.12,0.0003589,14]
[377571691,1754445075197,-949.67,0.0003589,14]
[377571692,1754445075208,-400.0,0.0003589,14]
[377571693,1754445075218,-568.21,0.0003589,14]
[377571694,1754445075227,-498.72,0.0003589,14]
[377571695,1754445075237,-2013.03,0.0003589,14]
[377571696,1754445075246,-767.84,0.0003589,14]
[377571697,1754445075256,-400.0,0.0003589,14]
[377571698,1754445075265,-1824.43,0.0003589,14]
[377571699,1754445075274,-1988.32,0.0003589,14]
[377571700,1754445075284,-400.0,0.0003589,14]
[377571701,1754445075294,-2354.23,0.0003589,14]
[377571702,1754445075303,-480.69,0.0003589,14]
[377571703,1754445075312,-400.0,0.0003589,14]
[377571704,1754445075321,-400.0,0.0003589,14]
[377571705,1754445075330,-400.0,0.0003589,14]
[377571706,1754445075339,-400.0,0.0003589,14]
[377571707,1754445075348,-758.44,0.0003589,14]
[377571708,1754445075358,-400.0,0.0003589,14]
[377571709,1754445075367,-416.99,0.0003589,14]
[377571710,1754445075376,-400.0,0.0003589,14]
[377571711,1754445075385,-718.49,0.0003589,14]
[377571712,1754445075394,-1328.89,0.0003589,14]
[377571713,1754445075404,-400.0,0.0003589,14]
[377571714,1754445075413,-400.0,0.0003589,14]
[377571715,1754445075422,-439.78,0.0003589,14]
[377571716,1754445075432,-400.0,0.0003589,14]
[377571717,1754445075442,-400.0,0.0003589,14]
[377571718,1754445075455,-400.0,0.0003589,14]
[377571719,1754445075466,-400.0,0.0003589,14]
[377571720,1754445075475,-2988.22,0.0003589,14]
[377571721,1754445075485,-400.0,0.0003589,14]
[377571722,1754445075494,-2203.89,0.0003589,14]
[377571723,1754445075503,-1149.15,0.0003589,14]
[377571724,1754445075512,-400.0,0.0003589,14]
[377571725,1754445075522,-400.0,0.0003589,14]
[377571726,1754445075532,-400.0,0.0003589,14]
[377571727,1754445075544,-1480.78,0.0003589,14]
[377571728,1754445075553,-533.39,0.0003589,14]
[377571729,1754445075563,-400.0,0.0003589,14]
[377571730,1754445075572,-400.0,0.0003589,14]
[377571731,1754445075582,-401.15437427,0.0003589,14]
[377571732,1754445075591,-400.0,0.0003589,120]
[377571733,1754445075600,-2499.37,0.0003589,14]
[377571734,1754445075610,-547.74,0.0003589,14]
[377571735,1754445075620,-657.92,0.0003589,14]
[377571736,1754445075631,-571.97,0.0003589,14]
[377571737,1754445075641,-400.0,0.0003589,14]
[377571738,1754445075652,-1707.26,0.0003589,14]
[377571739,1754445075673,-1895.93,0.0003589,14]
[377571740,1754445075688,-1700.42,0.0003589,14]
[377571741,1754445075697,-1189.15,0.0003589,14]
[377571742,1754445075706,-602.43,0.0003589,14]
[377571743,1754445075716,-400.0,0.0003589,14]
[377571744,1754445075725,-1693.91,0.0003589,14]
[377571745,1754445075734,-400.0,0.0003589,14]
[377571746,1754445075744,-400.0,0.0003589,14]
[377571747,1754445075754,-1368.61,0.0003589,14]
[377571748,1754445075763,-400.0,0.0003589,14]
[377571749,1754445075772,-400.0,0.0003589,14]
[377571750,1754445075782,-416.82,0.0003589,14]
[377571751,1754445075792,-400.0,0.0003589,14]
[377571752,1754445075802,-400.0,0.0003589,14]
[377571753,1754445075811,-400.0,0.0003589,14]
[377571754,1754445075821,-400.0,0.0003589,14]
[377571755,1754445075834,-717.67,0.0003589,14]
[377571756,1754445075843,-400.0,0.0003589,14]
[377571757,1754445075852,-1626.03,0.0003589,14]
[377571758,1754445075861,-2682.58,0.0003589,14]
[377571759,1754445075872,-410.81974486,0.0003589,14]
[377571760,1754445075881,-636.39,0.0003589,14]
[377571761,1754445075891,-769.03,0.0003589,14]
[377571762,1754445075902,-1340.21,0.0003589,14]
[377571763,1754445075911,-2230.29,0.0003589,14]
[377571764,1754445075920,-443.43092419,0.0003589,14]
[377571765,1754445075929,-151.0,0.0003589,7]
[377571766,1754445075938,-1549.47,0.0003589,14]
[377571767,1754445075948,-1641.75,0.0003589,14]
[377571768,1754445075957,-151.0,0.0003589,7]
[377571769,1754445075967,-400.0,0.0003589,14]
[377571770,1754445075976,-400.0,0.0003589,14]
[377571771,1754445075986,-2884.4,0.0003589,14]
[377571772,1754445075995,-2077.85,0.0003589,14]
[377571773,1754445076006,-400.0,0.0003589,14]
[377571774,1754445076015,-400.0,0.0003589,14]
[377571775,1754445076024,-3366.84,0.0003589,14]
[377571776,1754445076033,-641.86,0.0003589,14]
[377571777,1754445076042,-1990.46,0.0003589,14]
[377571778,1754445076051,-400.0,0.0003589,14]
[377571779,1754445076061,-401.04386146,0.0003589,14]
[377571780,1754445076070,-518.43,0.0003589,14]
[377571781,1754445076079,-2093.1,0.0003589,14]
[377571782,1754445076089,-400.0,0.0003589,14]
[377571783,1754445076098,-400.0,0.0003589,14]
[377571784,1754445076107,-439.51,0.0003589,14]
[377571785,1754445076117,-1193.12,0.0003589,14]
[377571786,1754445076126,-463.8,0.0003589,14]
[377571787,1754445076136,-1513.27,0.0003589,14]
[377571788,1754445076145,-400.0,0.0003589,14]
[377571789,1754445076156,-601.08,0.0003589,14]
[377571790,1754445076165,-400.0,0.0003589,14]
[377571791,1754445076175,-1083.21,0.0003589,14]
[377571792,1754445076184,-423.39,0.0003589,14]
[377571793,1754445076193,-400.0,0.0003589,14]
[377571794,1754445076202,-400.0,0.0003589,14]
[377571795,1754445076212,-400.0,0.0003589,14]
[377571796,1754445076221,-2286.88,0.0003589,14]
[377571797,1754445076230,-905.59,0.0003589,14]
[377571798,1754445076239,-434.02,0.0003589,14]
[377571799,1754445076248,-2123.08,0.0003589,14]
[377571800,1754445076258,-400.0,0.0003589,14]
[377571801,1754445076268,-400.0,0.0003589,14]
[377571802,1754445076277,-400.0,0.0003589,14]
[377571803,1754445076286,-2629.25,0.0003589,14]
[377571804,1754445076296,-400.0,0.0003589,14]
[377571805,1754445076305,-1104.88,0.0003589,14]
[377571806,1754445076316,-400.0,0.0003589,14]
[377571807,1754445076325,-479.99,0.0003589,14]
[377571808,1754445076336,-847.31,0.0003589,14]
[377571809,1754445076345,-2002.8,0.0003589,14]
[377571810,1754445076355,-2067.35,0.0003589,14]
[377571811,1754445076364,-71290.36,0.0003589,14]
[377571812,1754445076373,-400.0,0.0003589,14]
[377571813,1754445076382,-3017.99,0.0003589,14]
[377571814,1754445076392,-1245.68,0.0003589,14]
[377571815,1754445076401,-590.54,0.0003589,14]
[377571816,1754445076410,-400.0,0.0003589,14]
[377571817,1754445076419,-604.63,0.0003589,14]
[377571818,1754445076429,-933.36,0.0003589,14]
[377571819,1754445076438,-447.51,0.0003589,14]
[377571820,1754445076447,-1652.1,0.0003589,14]
[377571821,1754445076457,-673.51,0.0003589,14]
[377571822,1754445076466,-400.0,0.0003589,14]
[377571823,1754445076475,-654.96,0.0003589,14]
[377571824,1754445076484,-1875.41,0.0003589,14]
[377571825,1754445076494,-2830.73,0.0003589,14]
[377571826,1754445076503,-400.0,0.0003589,14]
[377571827,1754445076512,-400.0,0.0003589,14]
[377571828,1754445076521,-546.92,0.0003589,14]
[377571829,1754445076531,-151.0,0.0003589,7]
[377571830,1754445076539,-151.0,0.0003589,7]
[377571831,1754445076549,-848.25,0.0003589,14]
[377571832,1754445076559,-1724.16,0.0003589,14]
[377571833,1754445076568,-1918.37,0.0003589,14]
[377571834,1754445076577,-2789.82,0.0003589,14]
[377571835,1754445076587,-400.0,0.0003589,14]
[377571836,1754445076596,-1784.3,0.0003589,14]
[377571837,1754445076605,-1545.14,0.0003589,14]
[377571838,1754445076614,-1081.98,0.0003589,14]
[377571839,1754445076623,-2023.55,0.0003589,14]
[377571840,1754445076632,-1648.33,0.0003589,14]
[377571841,1754445076642,-500.0,0.0003589,10]
[377571842,1754445076651,-1821.93,0.0003589,14]
[377571843,1754445076660,-3617.37,0.0003589,14]
[377571844,1754445076669,-2306.61,0.0003589,14]
[377571845,1754445076679,-400.0,0.0003589,14]
[377571846,1754445076688,-1041.11,0.0003589,14]
[377571847,1754445076698,-2855.56,0.0003589,14]
[377571848,1754445076707,-400.0,0.0003589,14]
[377571849,1754445076717,-493.49,0.0003589,14]
[377571850,1754445076727,-1811.94,0.0003589,14]
[377571851,1754445076736,-400.0,0.0003589,14]
[377571852,1754445076745,-400.0,0.0003589,14]
[377571853,1754445076755,-400.0,0.0003589,14]
[377571854,1754445076764,-400.0,0.0003589,14]
[377571855,1754445076774,-436.71,0.0003589,14]
[377571856,1754445076783,-400.0,0.0003589,14]
[377571857,1754445076793,-1187.63,0.0003589,14]
[377571858,1754445076803,-3830.15,0.0003589,14]
[377571859,1754445076812,-762.8,0.0003589,14]
[377571860,1754445076822,-400.0,0.0003589,14]
[377571861,1754445076834,-794.08,0.0003589,14]
[377571862,1754445076844,-416.71,0.0003589,14]
[377571863,1754445076853,-2613.19,0.0003589,14]
[377571864,1754445076862,-2255.8,0.0003589,14]
[377571865,1754445076872,-400.0,0.0003589,14]
[377571866,1754445076881,-1160.89,0.0003589,14]
[377571867,1754445076890,-2221.46,0.0003589,14]
[377571868,1754445076901,-513.53,0.0003589,14]
[377571869,1754445076910,-400.0,0.0003589,14]
[377571870,1754445076920,-400.0,0.0003589,14]
[377571871,1754445076929,-400.0,0.0003589,14]
[377571872,1754445076938,-393.14,0.0003589,14]
[377571873,1754445076949,-781.28,0.0003589,14]
[377571874,1754445076959,-400.0,0.0003589,14]
[377571875,1754445076969,-400.0,0.0003589,14]
[377571876,1754445076979,-936.65,0.0003589,14]
[377571877,1754445076990,-612.34,0.0003589,14]
[377571878,1754445076999,-1748.09,0.0003589,14]
[377571879,1754445077009,-400.0,0.0003589,14]
[377571880,1754445077018,-2655.03,0.0003589,14]
[377571881,1754445077027,-400.0,0.0003589,14]
[377571882,1754445077036,-831.4,0.0003589,14]
[377571883,1754445077046,-1644.91,0.0003589,14]
[377571884,1754445077055,-506.01,0.0003589,14]
[377571885,1754445077064,-400.0,0.0003589,14]
[377571886,1754445077074,-2008.93,0.0003589,14]
[377571887,1754445077083,-400.0,0.0003589,14]
[377571888,1754445077093,-953.45,0.0003589,14]
[377571889,1754445077102,-648.56,0.0003589,14]
[377571890,1754445077111,-400.0,0.0003589,14]
[377571891,1754445077120,-2625.94,0.0003589,14]
[377571892,1754445077129,-400.0,0.0003589,14]
[377571893,1754445077139,-400.0,0.0003589,14]
[377571894,1754445077149,-400.0,0.0003589,14]
[377571895,1754445077158,-973.51,0.0003589,14]
[377571896,1754445077168,-400.0,0.0003589,2]
[377571897,1754445077177,-2742.82,0.0003589,14]
[377571898,1754445077187,-1508.84,0.0003589,14]
[377571899,1754445077196,-1000.0,0.0003589,30]
[377571900,1754445077206,-1416.11,0.0003589,14]
[377571901,1754445077216,-796.41,0.0003589,14]
[377571902,1754445077226,-400.0,0.0003589,14]
[377571903,1754445077236,-435.03,0.0003589,14]
[377571904,1754445077246,-912.38,0.0003589,14]
[377571905,1754445077257,-400.0,0.0003589,14]
[377571906,1754445077267,-1688.61,0.0003589,14]
[377571907,1754445077277,-400.0,0.0003589,14]
[377571908,1754445077287,-406.24,0.0003589,14]
[377571909,1754445077297,-1276.5,0.0003589,14]
[377571910,1754445077307,-1930.39,0.0003589,14]
[377571911,1754445077316,-3362.96,0.0003589,14]
[377571912,1754445077325,-400.0,0.0003589,14]
[377571913,1754445077336,-400.0,0.0003589,14]
[377571914,1754445077346,-1533.65,0.0003589,14]
[377571915,1754445077355,-1233.26,0.0003589,14]
[377571916,1754445077364,-170.348745,0.0003589,7]
[377571917,1754445077373,-974.88,0.0003589,14]
[377571918,1754445077382,-400.0,0.0003589,14]
[377571919,1754445077391,-400.0,0.0003589,14]
[377571920,1754445077402,-400.0,0.0003589,14]
[377571921,1754445077421,-828.93,0.0003589,14]
[377571922,1754445077431,-400.0,0.0003589,14]
[377571923,1754445077440,-611.39,0.0003589,14]
[377571924,1754445077450,-2359.36,0.0003589,14]
[377571925,1754445077459,-1381.51,0.0003589,14]
[377571926,1754445077469,-400.0,0.0003589,14]
[377571927,1754445077478,-2353.9,0.0003589,14]
[377571928,1754445077487,-400.0,0.0003589,14]
[377571929,1754445077497,-2428.33,0.0003589,14]
[377571930,1754445077507,-720.53,0.0003589,14]
[377571931,1754445077516,-508.54,0.0003589,14]
[377571932,1754445077526,-400.0,0.0003589,14]
[377571933,1754445077536,-1570.84,0.0003589,14]
[377571934,1754445077545,-400.0,0.0003589,14]
[377571935,1754445077555,-727.52,0.0003589,14]
[377571936,1754445077565,-914.87,0.0003589,14]
[377571937,1754445077574,-400.0,0.0003589,14]
[377571938,1754445077584,-400.0,0.0003589,14]
[377571939,1754445077594,-1242.76,0.0003589,14]
[377571940,1754445077603,-369.02331646,0.0003589,14]
[377571941,1754445077612,-400.0,0.0003589,14]
[377571942,1754445077622,-323.72242871,0.0003589,14]
[377571943,1754445077631,-1815.15,0.0003589,14]
[377571944,1754445077640,-2159.6,0.0003589,14]
[377571945,1754445077650,-1691.5,0.0003589,14]
[377571946,1754445077659,-2604.52,0.0003589,14]
[377571947,1754445077669,-400.0,0.0003589,14]
[377571948,1754445077679,-2108.28,0.0003589,14]
[377571949,1754445077688,-833.52,0.0003589,14]
[377571950,1754445077698,-3299.28,0.0003589,14]
[377571951,1754445077707,-400.0,0.0003589,14]
[377571952,1754445077716,-420.06635584,0.0003589,14]
[377571953,1754445077726,-2255.41,0.0003589,14]
[377571954,1754445077735,-400.0,0.0003589,14]
[377571955,1754445077745,-153.988213,0.0003589,7]
[377571956,1754445077755,-400.0,0.0003589,14]
[377571957,1754445077764,-400.0,0.0003589,14]
[377571958,1754445077774,-518.49,0.0003589,14]
[377571959,1754445077783,-2313.76,0.0003589,14]
[377571960,1754445077793,-400.0,0.0003589,14]
[377571961,1754445077803,-1373.52,0.0003589,14]
[377571962,1754445077813,-400.0,0.0003589,14]
[377571963,1754445077825,-2179.89,0.0003589,14]
[377571964,1754445077838,-400.0,0.0003589,14]
[377571965,1754445077848,-730.83,0.0003589,14]
[377571966,1754445077858,-2179.98,0.0003589,14]
[377571967,1754445077868,-400.0,0.0003589,14]
[377571968,1754445077879,-1963.34,0.0003589,14]
[377571969,1754445077889,-2168.33,0.0003589,14]
[377571970,1754445077899,-461.51991749,0.0003589,14]
[377571971,1754445077911,-251.17453454,0.0003589,14]
[377571972,1754445077921,-458.01,0.0003589,14]
[377571973,1754445077931,-815.36,0.0003589,14]
[377571974,1754445077940,-1061.433774,0.0003589,7]
[377571975,1754445077950,-682.09,0.0003589,14]
[377571976,1754445077960,-1061.433774,0.0003589,7]
[377571977,1754445077970,-400.0,0.0003589,14]
[377571978,1754445077980,-2626.5,0.0003589,14]
[377571979,1754445077990,-4617.44,0.0003589,14]